fUST/lending_fUST_20250217
["ID","MTS","AMOUNT","RATE_DAILY","PERIOD"]
[353336642,1739781040288,-500.0,0.0001541,7]
[353336643,1739781040297,-500.0,0.0001541,7]
[353336644,1739781040306,-500.0,0.0001541,7]
[353336645,1739781040315,-500.0,0.0001541,7]
[353336646,1739781040325,-500.0,0.0001541,7]
[353336647,1739781040334,-500.0,0.0001541,7]
[353336648,1739781040343,-500.0,0.0001541,7]
[353336650,1739781040353,-500.0,0.0001541,7]
[353336652,1739781040362,-500.0,0.0001541,7]
[353336653,1739781040371,-500.0,0.0001541,7]
[353336654,1739781040380,-500.0,0.0001541,7]
[353336655,1739781040390,-500.0,0.0001541,7]
[353336656,1739781040399,-500.0,0.0001541,7]
[353336657,1739781040408,-468.18,0.0001541,7]
[353336658,1739781040417,-577.1988716,0.00015421,2]
[353336659,1739781040426,-331.82142322,0.00015421,2]
[353336660,1739781040435,-500.0,0.00015421,2]
[353336661,1739781040445,-572.4461124,0.00015421,2]
[353336662,1739781040455,-1000.0,0.00015421,2]
[353336663,1739781040465,-1000.0,0.00015421,2]
[353336664,1739781040474,-1483.5872965,0.00015442,2]
[353336665,1739781040484,-6365.80280978,0.00015489,2]
[353336666,1739781040626,-1483.5872965,0.00015542,2]
[353336667,1739781040641,-150.26042096,0.00015592,4]
[353336668,1739781040652,-290.63951603,0.00015607,2]
[353336669,1739781040662,-1483.5872965,0.00015642,2]
[353336670,1739781040671,-396.0,0.00015673,2]
[353336671,1739781040681,-338.5873018,0.0001569,2]
[353336672,1739781040690,-184.97113629,0.000157,2]
[353336673,1739781040700,-1565.20107158,0.000157,2]
[353336674,1739781040710,-1500.0,0.000157,2]
[353336675,1739781040720,-1483.5872965,0.00015742,2]
[353336676,1739781040730,-168.48787744,0.00015753,2]
[353336677,1739781040740,-6365.80280978,0.00015833,2]
[353336678,1739781040749,-279.56672478,0.00015842,2]
[353336679,1739781040881,-162.31086562,0.00015842,2]
[353336680,1739781041224,-1041.7097061,0.00015842,2]
[353336681,1739781041235,-498.57453263,0.00015876,2]
[353336687,1739781042931,-192.53920514,0.00015876,2]
[353336692,1739781043077,-17.10895623,0.00015876,2]
[353336701,1739781043893,-1799.28865181,0.00015876,2]
[353336702,1739781043905,-442.48865419,0.00015876,2]
[353336703,1739781043914,-1483.5872965,0.00015942,2]
[353336704,1739781043923,-338.5873018,0.0001599,2]
[353336705,1739781043933,-14785.17061266,0.0001599,2]
[353336706,1739781043942,-5000.0,0.00016,7]
[353336707,1739781043952,-5000.0,0.00016,7]
[353336708,1739781043961,-5000.0,0.00016,7]
[353336709,1739781043971,-5000.0,0.00016,7]
[353336710,1739781043980,-5000.0,0.00016,7]
[353336711,1739781043989,-2000.00908278,0.00016,7]
[353336712,1739781043998,-9338.06530084,0.00016,2]
[353336713,1739781044008,-1483.5872965,0.00016042,2]
[353336714,1739781044017,-496.2380643,0.00016082,2]
[353336715,1739781044027,-355.0956536,0.00016082,2]
[353336716,1739781044036,-355.0956536,0.00016082,2]
[353336717,1739781044045,-355.0956536,0.00016082,2]
[353336718,1739781044055,-355.0956536,0.00016082,2]
[353336719,1739781044069,-355.0956536,0.00016082,2]
[353336720,1739781044078,-355.0956536,0.00016082,2]
[353336721,1739781044088,-355.0956536,0.00016082,2]
[353336722,1739781044179,-355.0956536,0.00016082,2]
[353336723,1739781044194,-334.0,0.0001609,2]
[353336724,1739781044205,-1483.5872965,0.00016142,2]
[353336725,1739781044215,-820.82,0.00016164,2]
[353336726,1739781044225,-6365.80280978,0.00016178,2]
[353336727,1739781044234,-290.63951603,0.00016181,2]
[353336728,1739781044243,-1483.5872965,0.00016242,2]
[353336729,1739781044252,-827.6854941,0.00016244,2]
[353336730,1739781044261,-1687.0,0.000163,2]
[353336731,1739781044270,-1483.5872965,0.00016342,2]
[353336732,1739781044279,-677.1746036,0.00016403,2]
[353336733,1739781044289,-3000.0,0.0001641,2]
[353336734,1739781044298,-338.5873018,0.0001641,2]
[353336735,1739781044307,-151.0,0.00016412,2]
[353336736,1739781044316,-151.0,0.00016412,2]
[353336737,1739781044325,-151.0,0.00016412,2]
[353336738,1739781044334,-151.0,0.00016412,2]
[353336739,1739781044344,-151.0,0.00016412,2]
[353336740,1739781044355,-151.0,0.00016412,2]
[353336741,1739781044364,-1261.608879,0.00016412,2]
[353336742,1739781044373,-1261.608879,0.00016412,2]
[353336743,1739781044384,-388.597977,0.00016412,2]
[353336744,1739781044393,-388.597977,0.00016412,2]
[353336745,1739781044402,-151.0,0.00016412,2]
[353336746,1739781044412,-151.0,0.00016412,2]
[353336747,1739781044421,-156.363647,0.00016413,2]
[353336748,1739781044430,-156.363647,0.00016413,2]
[353336749,1739781044439,-156.363647,0.00016413,2]
[353336750,1739781044448,-156.363647,0.00016413,2]
[353336751,1739781044459,-151.0,0.00016413,2]
[353336752,1739781044468,-151.0,0.00016413,2]
[353336753,1739781044476,-151.0,0.00016413,2]
[353336754,1739781044486,-151.0,0.00016413,2]
[353336755,1739781044495,-151.0,0.00016413,2]
[353336756,1739781044504,-253.292552,0.00016413,2]
[353336757,1739781044513,-151.0,0.00016413,2]
[353336758,1739781044522,-151.0,0.00016413,2]
[353336759,1739781044531,-151.0,0.00016413,2]
[353336760,1739781044541,-151.0,0.00016413,2]
[353336761,1739781044551,-151.0,0.00016413,2]
[353336762,1739781044560,-151.0,0.00016413,2]
[353336763,1739781044569,-1261.608879,0.00016413,2]
[353336764,1739781044578,-1261.608879,0.00016413,2]
[353336765,1739781044587,-1261.608879,0.00016413,2]
[353336766,1739781044597,-1261.608879,0.00016413,2]
[353336767,1739781044607,-388.597977,0.00016413,2]
[353336768,1739781044617,-388.597977,0.00016413,2]
[353336769,1739781044628,-388.597977,0.00016413,2]
[353336770,1739781044638,-388.597977,0.00016413,2]
[353336771,1739781044647,-151.0,0.00016413,2]
[353336772,1739781044657,-151.0,0.00016413,2]
[353336773,1739781044667,-151.0,0.00016413,2]
[353336774,1739781044676,-254.6,0.00016413,2]
[353336775,1739781044686,-151.0,0.00016413,2]
[353336776,1739781044695,-151.0,0.00016413,2]
[353336777,1739781044706,-151.0,0.00016413,2]
[353336778,1739781044716,-151.0,0.00016413,2]
[353336779,1739781044725,-151.0,0.00016413,2]
[353336780,1739781044735,-3000.0,0.0001642,2]
[353336781,1739781044744,-151.0,0.0001642,2]
[353336782,1739781044754,-151.0,0.0001642,2]
[353336783,1739781044764,-92294.78298577,0.0001642,5]
[353336784,1739781044774,-53702.65399561,0.0001642,5]
[353336785,1739781044784,-85410.30831169,0.00016421,10]
[353336787,1739781046374,-167100.9443352,0.00016421,10]
[353336788,1739781046417,-129.53334114,0.00016421,10]
[353336791,1739781135856,2500.0,0.00010959,2]
[353336792,1739781140174,401.47,0.00010959,2]
[353336793,1739781150889,501.92,0.00010959,2]
[353336794,1739781197022,3000.0,0.00016398,120]
[353336803,1739782025122,-292.58167294,8.421e-05,2]
[353336804,1739782025146,-1534.18013195,8.506e-05,2]
[353336805,1739782027118,-1186.90999681,8.506e-05,2]
[353336806,1739782041140,-5039.71742364,8.506e-05,2]
[353336807,1739782041164,-292.3208597,8.675e-05,2]
[353336808,1739782041189,-300.0,8.866e-05,2]
[353336809,1739782041215,-500.0,8.867e-05,2]
[353336810,1739782041240,-500.0,8.867e-05,2]
[353336811,1739782041262,-500.0,8.867e-05,2]
[353336812,1739782041283,-500.0,8.867e-05,2]
[353336813,1739782041313,-501.3842155,8.867e-05,2]
[353336814,1739782041344,-500.0,8.867e-05,2]
[353336815,1739782041371,-501.92799783,8.867e-05,2]
[353336816,1739782041396,-502.61012218,8.867e-05,2]
[353336817,1739782041419,-501.51034524,8.867e-05,2]
[353336818,1739782041444,-500.0,8.867e-05,2]
[353336819,1739782041466,-502.0339077,8.867e-05,2]
[353336820,1739782041488,-502.31209803,8.867e-05,2]
[353336821,1739782041510,-503.44442253,8.867e-05,2]
[353336822,1739782041532,-502.35220792,8.867e-05,2]
[353336823,1739782041555,-307.93491791,8.867e-05,2]
[353336824,1739782041577,-502.29766546,8.867e-05,2]
[353336825,1739782041601,-500.0,8.867e-05,2]
[353336826,1739782041624,-375.33422466,8.867e-05,2]
[353336827,1739782041647,-536.23182544,8.867e-05,2]
[353336828,1739782041670,-506.13785597,8.867e-05,2]
[353336829,1739782041691,-502.06242398,8.867e-05,2]
[353336830,1739782041714,-442.95592162,8.867e-05,2]
[353336831,1739782041737,-503.43924823,8.867e-05,2]
[353336832,1739782041758,-503.35401563,8.867e-05,2]
[353336833,1739782041783,-501.95616915,8.867e-05,2]
[353336834,1739782041805,-501.66911015,8.867e-05,2]
[353336835,1739782041828,-503.00574497,8.867e-05,2]
[353336836,1739782041852,-502.86270262,8.867e-05,2]
[353336837,1739782041877,-500.0,8.867e-05,2]
[353336838,1739782041900,-559.9939918,8.867e-05,2]
[353336839,1739782041923,-503.31045419,8.867e-05,2]
[353336840,1739782041944,-503.11989805,8.867e-05,2]
[353336841,1739782041967,-502.0662369,8.867e-05,2]
[353336842,1739782041990,-502.84925876,8.867e-05,2]
[353336843,1739782042013,-502.40379397,8.867e-05,2]
[353336844,1739782042035,-24900.0,8.868e-05,2]
[353336845,1739782042058,-250.0,8.907e-05,2]
[353336846,1739782042081,-500.0,8.949e-05,2]
[353336847,1739782042104,-500.0,8.949e-05,2]
[353336848,1739782042126,-500.0,8.949e-05,2]
[353336849,1739782042149,-500.0,8.949e-05,2]
[353336850,1739782042171,-500.0,8.949e-05,2]
[353336851,1739782042193,-500.0,9.032e-05,2]
[353336852,1739782042214,-500.0,9.032e-05,2]
[353336853,1739782042237,-500.0,9.032e-05,2]
[353336854,1739782042259,-370.88718469,9.032e-05,2]
[353336855,1739782042280,-500.0,9.114e-05,2]
[353336856,1739782042302,-500.0,9.196e-05,2]
[353336857,1739782042327,-500.0,9.278e-05,2]
[353336858,1739782042351,-500.0,9.36e-05,2]
[353336859,1739782042372,-163.21069625,9.443e-05,2]
[353336860,1739782042395,-420.0,9.753e-05,2]
[353336861,1739782042416,-502.49024554,9.799e-05,2]
[353336862,1739782042438,-501.6728425,9.799e-05,2]
[353336863,1739782042459,-500.0,9.822e-05,2]
[353336864,1739782042481,-500.0,9.863e-05,2]
[353336865,1739782042502,-501.77557011,9.863e-05,2]
[353336866,1739782042524,-503.61429047,9.863e-05,2]
[353336867,1739782042546,-500.0,9.863e-05,2]
[353336868,1739782042568,-503.17323342,9.863e-05,2]
[353336869,1739782042591,-500.0,9.863e-05,2]
[353336870,1739782042614,-500.0,9.863e-05,2]
[353336871,1739782042635,-647.75185856,9.863e-05,2]
[353336872,1739782042657,-500.0,9.863e-05,2]
[353336873,1739782042680,-500.0,9.863e-05,2]
[353336874,1739782042701,-500.0,9.863e-05,2]
[353336875,1739782042723,-501.14196905,9.863e-05,2]
[353336876,1739782042746,-500.0,9.863e-05,2]
[353336877,1739782042769,-500.0,9.863e-05,2]
[353336878,1739782042792,-500.0,9.863e-05,2]
[353336879,1739782042814,-500.0,9.863e-05,2]
[353336880,1739782042838,-500.0,9.863e-05,2]
[353336881,1739782042864,-500.0,9.863e-05,2]
[353336882,1739782042887,-500.0,9.863e-05,2]
[353336883,1739782042910,-500.0,9.863e-05,2]
[353336884,1739782042934,-500.0,9.863e-05,2]
[353336885,1739782042957,-500.0,9.863e-05,2]
[353336886,1739782042983,-500.0,9.863e-05,2]
[353336887,1739782043005,-500.0,9.863e-05,2]
[353336888,1739782043029,-500.99649548,9.863e-05,2]
[353336889,1739782043052,-500.0,9.863e-05,2]
[353336890,1739782043075,-500.0,9.863e-05,2]
[353336891,1739782043098,-500.0,9.863e-05,2]
[353336892,1739782043122,-500.0,9.863e-05,2]
[353336893,1739782043145,-500.0,9.863e-05,2]
[353336894,1739782043168,-500.0,9.863e-05,2]
[353336895,1739782043190,-500.0,9.863e-05,2]
[353336896,1739782043213,-500.0,9.863e-05,2]
[353336897,1739782043235,-500.0,9.863e-05,2]
[353336898,1739782043257,-500.0,9.863e-05,2]
[353336899,1739782043280,-500.9795614,9.863e-05,2]
[353336900,1739782043302,-500.0,9.863e-05,2]
[353336901,1739782043324,-500.0,9.863e-05,2]
[353336902,1739782043351,-500.0,9.863e-05,2]
[353336903,1739782043373,-500.0,9.863e-05,2]
[353336904,1739782043397,-500.0,9.863e-05,2]
[353336905,1739782043421,-500.0,9.863e-05,2]
[353336906,1739782043444,-500.0,9.863e-05,2]
[353336907,1739782043466,-519.6055751,9.863e-05,2]
[353336908,1739782043488,-500.0,9.863e-05,2]
[353336909,1739782043511,-500.0,9.863e-05,2]
[353336910,1739782043533,-500.0,9.863e-05,2]
[353336911,1739782043555,-355.00658866,9.863e-05,2]
[353336912,1739782043578,-500.0,9.863e-05,2]
[353336913,1739782043601,-407.57474546,9.863e-05,2]
[353336914,1739782043623,-500.0,9.863e-05,2]
[353336915,1739782043647,-520.49267252,9.863e-05,2]
[353336916,1739782043668,-206.46707332,9.863e-05,2]
[353336917,1739782043690,-58843.6284608,9.864e-05,2]
[353336918,1739782043712,-498.84886292,9.915e-05,2]
[353336919,1739782043734,-306.03888274,9.915e-05,2]
[353336920,1739782050099,-500.0,8.867e-05,2]
[353336921,1739782050124,-528.58616133,8.867e-05,2]
[353336922,1739782050145,-193.96111726,9.915e-05,2]
[353336923,1739782050166,-500.0,9.915e-05,2]
[353336924,1739782050187,-274.94058357,9.915e-05,2]
[353336925,1739782050208,-500.0,9.946e-05,2]
[353336926,1739782050230,-564.0263654,9.946e-05,2]
[353336927,1739782050252,-334.07552992,9.946e-05,2]
[353336928,1739782050275,-500.0,9.946e-05,2]
[353336929,1739782050298,-500.0,9.946e-05,2]
[353336930,1739782050324,-500.0,9.946e-05,2]
[353336931,1739782050349,-500.0,9.946e-05,2]
[353336932,1739782050374,-500.0,9.946e-05,2]
[353336933,1739782050397,-500.0,9.946e-05,2]
[353336934,1739782050419,-502.93339405,9.946e-05,2]
[353336935,1739782050442,-500.0,9.946e-05,2]
[353336936,1739782050466,-500.0,9.946e-05,2]
[353336937,1739782050489,-500.0,9.946e-05,2]
[353336938,1739782050512,-500.0,9.946e-05,2]
[353336939,1739782050535,-500.0,9.946e-05,2]
[353336940,1739782050557,-244.55871063,9.946e-05,2]
[353336941,1739782050579,-500.0,9.946e-05,2]
[353336942,1739782050603,-501.55162441,9.946e-05,2]
[353336943,1739782050627,-502.6029922,9.946e-05,2]
[353336944,1739782050649,-500.0,9.946e-05,2]
[353336945,1739782050670,-500.0,9.946e-05,2]
[353336946,1739782050691,-813.2444109,9.948e-05,2]
[353336947,1739782050712,-500.0,0.00010015,2]
[353336948,1739782050736,-500.0,0.00010028,2]
[353336949,1739782050760,-500.0,0.00010028,2]
[353336950,1739782050782,-295.66700864,0.00010028,2]
[353336951,1739782050804,-500.0,0.00010028,2]
[353336952,1739782050828,-500.0,0.00010028,2]
[353336953,1739782050850,-500.0,0.00010028,2]
[353336954,1739782050873,-500.0,0.00010028,2]
[353336955,1739782050897,-500.0,0.00010028,2]
[353336956,1739782050923,-500.0,0.00010028,2]
[353336957,1739782050949,-500.0,0.00010028,2]
[353336958,1739782050972,-500.0,0.00010028,2]
[353336959,1739782050996,-500.0,0.0001011,2]
[353336960,1739782051021,-500.0,0.00010192,2]
[353336961,1739782051048,-500.0,0.00010274,2]
[353336962,1739782051073,-300.82666344,0.00010356,2]
[353336963,1739782051096,-372.82124707,0.00010463,2]
[353336964,1739782051119,-500.0,0.00010463,2]
[353336965,1739782051140,-500.0,0.00010563,2]
[353336966,1739782051163,-587.0,0.00010728,2]
[353336967,1739782051184,-2500.0,0.00010897,2]
[353336968,1739782051205,-2500.0,0.00010906,2]
[353336969,1739782051226,-2500.0,0.00010915,2]
[353336970,1739782051247,-2500.0,0.00010924,2]
[353336971,1739782051268,-2500.0,0.00010933,2]
[353336972,1739782051289,-2500.0,0.00010941,2]
[353336973,1739782051309,-2500.0,0.0001095,2]
[353336974,1739782051330,-418.26,0.00010959,2]
[353336975,1739782051355,-348.55,0.00010959,2]
[353336976,1739782051377,-290.46,0.00010959,2]
[353336977,1739782051399,-242.05,0.00010959,2]
[353336978,1739782051421,-201.71,0.00010959,2]
[353336979,1739782051444,-168.09,0.00010959,2]
[353336980,1739782051466,-823.0,0.00011801,2]
[353336981,1739782051487,-500.0,0.00012039,2]
[353336982,1739782051507,-334.1291418,0.00012039,2]
[353336983,1739782051530,-42154.0430717,0.0001204,5]
[353336984,1739782146103,-300.0,8.866e-05,2]
[353336985,1739782146125,-548.47036504,8.867e-05,2]
[353336986,1739782146147,-501.30934755,8.867e-05,2]
[353336987,1739782146167,-502.48157041,8.867e-05,2]
[353336988,1739782146188,-503.87754306,8.867e-05,2]
[353336989,1739782146210,-501.29302457,8.867e-05,2]
[353336990,1739782146231,-510.80773471,8.867e-05,2]
[353336991,1739782146252,-501.19849178,8.867e-05,2]
[353336992,1739782146273,-501.32379415,8.867e-05,2]
[353336993,1739782146293,-501.72488103,8.867e-05,2]
[353336994,1739782146314,-501.68355709,8.867e-05,2]
[353336995,1739782146336,-501.28792855,8.867e-05,2]
[353336996,1739782146359,-502.54173835,8.867e-05,2]
[353336997,1739782146383,-502.46514565,8.867e-05,2]
[353336998,1739782146403,-642.58507435,8.867e-05,2]
[353336999,1739782146425,-501.10693433,8.867e-05,2]
[353337000,1739782146449,-420.0,9.753e-05,2]
[353337001,1739782146472,-518.65955604,0.0001074,2]
[353337002,1739782147095,-498.0,0.00010728,2]
[353337003,1739782147118,-775.65362726,0.0001074,2]
[353337004,1739782147140,-624.80016508,0.00010938,2]
[353337005,1739782150100,-772.56756088,0.00010938,2]
[353337006,1739782150122,-840.48,0.00010959,2]
[353337007,1739782150143,-1397.36772596,0.00011038,2]
[353337008,1739782150164,-1397.36772596,0.00011138,2]
[353337009,1739782150186,-1397.36772596,0.00011238,2]
[353337010,1739782150209,-1397.36772596,0.00011338,2]
[353337011,1739782150230,-1397.36772596,0.00011438,2]
[353337012,1739782150251,-1397.36772596,0.00011538,2]
[353337013,1739782150272,-1397.36772596,0.00011638,2]
[353337014,1739782150411,-1397.36772596,0.00011738,2]
[353337015,1739782150435,-1397.36772596,0.00011838,2]
[353337016,1739782150460,-1397.36772596,0.00011938,2]
[353337017,1739782150481,-1397.36772596,0.00012038,2]
[353337018,1739782150503,-29013.51720044,0.0001204,5]
[353337019,1739782150525,-1397.36772596,0.00012138,2]
[353337020,1739782150547,-1397.36772596,0.00012238,2]
[353337021,1739782150568,-166.0,0.00012329,2]
[353337022,1739782150590,-357.41920491,0.00012338,2]
[353337023,1739782151097,-500.0,8.867e-05,2]
[353337024,1739782151119,-376.37985111,8.949e-05,2]
[353337025,1739782152101,-214.96357979,8.949e-05,2]
[353337026,1739782152122,-1039.94852105,0.00012338,2]
[353337027,1739782152142,-1397.36772596,0.00012438,2]
[353337028,1739782152161,-1397.36772596,0.00012538,2]
[353337029,1739782152182,-388.499,0.000126,2]
[353337030,1739782152203,-971.63983037,0.00012638,2]
[353337031,1739782161190,210.19332387,8.867e-05,2]
[353337032,1739782161213,296.21299521,8.867e-05,2]
[353337033,1739782164379,400.0,0.00010685,2]
[353337034,1739782165666,500.0,8.867e-05,2]
[353337035,1739782177376,501.67176249,8.867e-05,2]
[353337038,1739782187853,500.88439611,8.867e-05,2]
[353337039,1739782195923,500.0,8.867e-05,2]
[353337040,1739782196710,501.85760944,8.867e-05,2]
[353337041,1739782197542,501.16438126,8.867e-05,2]
[353337042,1739782205448,500.0,8.867e-05,2]
[353337043,1739782206434,501.88547733,8.867e-05,2]
[353337044,1739782214525,123.44691273,8.867e-05,2]
[353337079,1739782232796,-376.55308727,8.867e-05,2]
[353337080,1739782232806,-492.36561838,8.867e-05,2]
[353337081,1739782232816,-205.97979435,8.867e-05,2]
[353337104,1739782238434,-296.36909111,8.867e-05,2]
[353337106,1739782238445,-501.15554577,8.867e-05,2]
[353337108,1739782238455,-502.60910499,8.867e-05,2]
[353337111,1739782238465,-500.0,8.949e-05,2]
[353337113,1739782238475,-500.0,9.032e-05,2]
[353337114,1739782238485,-500.0,9.114e-05,2]
[353337116,1739782238496,-500.0,9.196e-05,2]
[353337119,1739782238507,-500.0,9.278e-05,2]
[353337121,1739782238517,-500.0,9.36e-05,2]
[353337123,1739782238528,-500.0,9.443e-05,2]
[353337125,1739782238538,-496.60168818,9.525e-05,2]
[353337127,1739782238547,-425.72789559,0.00012638,2]
[353337129,1739782238557,-1397.36772596,0.00012738,2]
[353337131,1739782238566,-1397.36772596,0.00012838,2]
[353337133,1739782238577,-1397.36772596,0.00012938,2]
[353337135,1739782238586,-1397.36772596,0.00013038,2]
[353337137,1739782238595,-1397.36772596,0.00013138,2]
[353337140,1739782238604,-151.0,0.00013151,2]
[353337143,1739782238614,-1397.36772596,0.00013238,2]
[353337146,1739782238623,-1397.36772596,0.00013338,2]
[353337149,1739782238633,-1397.36772596,0.00013438,2]
[353337152,1739782238642,-157.11166513,0.00013446,2]
[353337155,1739782238652,-500.0,0.00013473,2]
[353337158,1739782238662,-500.0,0.00013473,2]
[353337161,1739782238673,-500.0,0.00013473,2]
[353337164,1739782238682,-500.0,0.00013473,2]
[353337167,1739782238692,-500.0,0.00013473,2]
[353337170,1739782238701,-505.08104598,0.00013473,2]
[353337173,1739782238710,-7438.69753278,0.00013481,2]
[353337176,1739782238719,-1967.1622648,0.00013498,2]
[353337179,1739782238728,-5092.64224786,0.00013498,2]
[353337182,1739782238738,-583.89039926,0.00013499,2]
[353337185,1739782238747,-46147.39149289,0.000135,5]
[353337188,1739782238756,-69496.3315882,0.000135,5]
[353337191,1739782238765,-1116621.95215749,0.000135,2]
[353337195,1739782238778,-1088.31219625,0.000135,2]
[353337386,1739782240706,-8994.82556756,0.000135,2]
[353338376,1739782251397,-15815.32842986,0.000135,2]
[353338385,1739782251480,-1821.3000001,0.000135,2]
[353338529,1739782252838,-131.87888853,0.000135,2]
[353342212,1739782382943,210.0,0.00019,120]
[353342221,1739782891240,-995.67204432,8.265e-05,2]
[353342222,1739782915021,-868.86,8.182e-05,2]
[353342223,1739783021611,-995.67204432,8.265e-05,2]
[353342224,1739783110628,-495.67204432,8.265e-05,2]
[353342225,1739783136451,-495.67204432,8.265e-05,2]
[353342226,1739783140756,-495.67204432,8.265e-05,2]
[353342227,1739783162796,-495.67204432,8.265e-05,2]
[353342228,1739783171920,-495.67204432,8.265e-05,2]
[353342229,1739783187151,-495.67204432,8.265e-05,2]
[353342230,1739783202819,-495.67204432,8.265e-05,2]
[353342231,1739783237153,-335.66869239,8.265e-05,2]
[353342232,1739783238331,-160.00335193,8.265e-05,2]
[353342233,1739783244118,-271.33763317,8.348e-05,2]
[353342234,1739783249573,-224.33441115,8.265e-05,2]
[353342235,1739783266352,-224.33441115,8.265e-05,2]
[353342236,1739783283369,-224.33441115,8.265e-05,2]
[353342237,1739783298357,-224.33441115,8.265e-05,2]
[353342238,1739783313410,-224.33441115,8.265e-05,2]
[353342239,1739783329088,-224.33441115,8.265e-05,2]
[353342240,1739783344475,-224.33441115,8.265e-05,2]
[353342241,1739783346082,-224.33441115,8.348e-05,2]
[353342242,1739783346104,-475.92992441,8.867e-05,2]
[353342243,1739783346126,-500.51089187,8.867e-05,2]
[353342244,1739783346157,-500.0,8.867e-05,2]
[353342245,1739783346182,-440.9116426,0.00010862,2]
[353342246,1739783346206,-300.0,0.00011754,2]
[353342247,1739783346230,-500.0,0.00011755,2]
[353342248,1739783346253,-500.0,0.00011755,2]
[353342249,1739783346275,-500.0,0.00011755,2]
[353342250,1739783346298,-500.0,0.00011755,2]
[353342251,1739783346319,-500.0,0.00011755,2]
[353342252,1739783346344,-500.0,0.00011755,2]
[353342253,1739783346366,-500.0,0.00011755,2]
[353342254,1739783346389,-500.0,0.00011755,2]
[353342255,1739783346411,-590.74,0.00011755,2]
[353342256,1739783346434,-621.05,0.00011755,2]
[353342257,1739783346456,-500.0,0.00011755,2]
[353342258,1739783346481,-500.0,0.00011755,2]
[353342259,1739783346502,-24900.0,0.00011756,2]
[353342260,1739783346524,-500.0,0.00011837,2]
[353342261,1739783346546,-500.0,0.00011837,2]
[353342262,1739783346567,-500.0,0.00011837,2]
[353342263,1739783346588,-405.11,0.00011837,2]
[353342264,1739783346610,-500.0,0.00011837,2]
[353342265,1739783346635,-500.0,0.00011837,2]
[353342266,1739783346657,-433.13004729,0.00011837,2]
[353342267,1739783346678,-250.0,0.00011877,2]
[353342268,1739783346700,-500.0,0.00011919,2]
[353342269,1739783346723,-500.0,0.00011919,2]
[353342270,1739783346744,-500.0,0.00011919,2]
[353342271,1739783346766,-500.0,0.00011919,2]
[353342272,1739783346790,-500.0,0.00011919,2]
[353342273,1739783346811,-500.0,0.00012002,2]
[353342274,1739783346833,-500.0,0.00012002,2]
[353342275,1739783346855,-535.3218409,0.00012002,2]
[353342276,1739783346877,-500.0,0.00012002,2]
[353342277,1739783346899,-500.0,0.00012002,2]
[353342278,1739783346922,-500.0,0.00012084,2]
[353342279,1739783346943,-500.0,0.00012084,2]
[353342280,1739783346966,-500.0,0.00012084,2]
[353342281,1739783346990,-500.0,0.00012084,2]
[353342282,1739783347013,-500.0,0.00012166,2]
[353342283,1739783347034,-500.0,0.00012166,2]
[353342284,1739783347056,-415.11,0.00012166,2]
[353342285,1739783347080,-500.0,0.00012166,2]
[353342286,1739783347101,-500.0,0.00012248,2]
[353342287,1739783347123,-248.8,0.00012248,2]
[353342288,1739783347149,-500.0,0.00012248,2]
[353342289,1739783347171,-166.0,0.00012329,2]
[353342290,1739783347195,-500.0,0.0001233,2]
[353342291,1739783347217,-500.0,0.0001233,2]
[353342292,1739783347665,500.0,0.00011755,2]
[353342293,1739783347930,528.76,0.00011837,2]
[353342294,1739783353315,500.0,0.00011755,2]
[353342295,1739783359204,500.0,0.00011755,2]
[353342296,1739783359467,601.13550983,0.00011837,2]
[353342297,1739783360353,-490.0,0.00012413,2]
[353342298,1739783371501,500.0,0.00011755,2]
[353342300,1739783400346,400.0,0.00010685,2]
[353342301,1739783427207,344.11906089,0.00011755,2]
[353342302,1739783427231,155.88093911,0.00011755,2]
[353342303,1739783430201,638.99617756,0.00012313,2]
[353342335,1739783432785,-10.0,0.00012413,2]
[353342336,1739783432795,-500.0,0.00012495,2]
[353342337,1739783432806,-574.81050534,0.00012568,2]